fUSD/lending_fUSD_20260208
["ID","MTS","AMOUNT","RATE_DAILY","PERIOD"]
[404766865,1770519043248,-200.0,0.00037062,2]
[404766866,1770519043258,-200.0,0.00037062,2]
[404766867,1770519043267,-459.72,0.00037067,120]
[404766868,1770519043277,-14612.22,0.000371,2]
[404766869,1770519043287,-197.19613653,0.000372,120]
[404766870,1770519043296,-509.0,0.00037693,8]
[404766871,1770519043306,-3066.73,0.00037899,2]
[404766872,1770519043316,-689.136,0.00038299,51]
[404766873,1770519043325,-1411.0,0.00038365,2]
[404766874,1770519043335,-1335.0,0.00038365,2]
[404766875,1770519043344,-3484.0,0.00038365,2]
[404766876,1770519043354,-1206.0,0.00038365,2]
[404766877,1770519043365,-917.0,0.00038365,2]
[404766878,1770519043376,-1272.0,0.00038365,2]
[404766879,1770519043387,-6585.0,0.00038365,2]
[404766880,1770519043396,-2447.0,0.00038365,2]
[404766881,1770519043407,-3255.0,0.00038365,2]
[404766882,1770519043417,-152.0,0.0003841,3]
[404766883,1770519043427,-153.28,0.00038532,2]
[404766884,1770519043436,-1774.52,0.00038859,2]
[404766885,1770519043446,-151.71781684,0.00039,120]
[404766886,1770519043455,-181.07781338,0.00039114,2]
[404766887,1770519043464,-175.15556915,0.00039175,30]
[404766888,1770519043475,-509.0,0.00039386,10]
[404766889,1770519043485,-4657.83024449,0.00039595,2]
[404766890,1770519043495,-2000.0,0.000396,2]
[404766891,1770519043504,-300.0,0.00039721,2]
[404766892,1770519043514,-300.0,0.00039721,2]
[404766893,1770519043524,-300.0,0.00039721,2]
[404766894,1770519043534,-300.0,0.00039721,2]
[404766895,1770519043543,-572.03870209,0.00039721,2]
[404766896,1770519043552,-300.0,0.00039721,2]
[404766897,1770519043561,-300.0,0.00039721,2]
[404766898,1770519043571,-300.0,0.00039721,2]
[404766899,1770519043580,-1078.62288825,0.00039721,2]
[404766900,1770519043590,-303.1435796,0.00039721,2]
[404766901,1770519043599,-300.0,0.00039721,2]
[404766902,1770519043608,-852.9683247,0.00039721,2]
[404766903,1770519043618,-305.12354707,0.00039721,2]
[404766904,1770519043627,-300.0,0.00039721,2]
[404766905,1770519043638,-881.67763408,0.00039721,2]
[404766906,1770519043648,-300.0,0.00039721,2]
[404766907,1770519043657,-300.0,0.00039721,2]
[404766908,1770519043667,-300.0,0.00039721,2]
[404766909,1770519043676,-300.0,0.00039721,2]
[404766910,1770519043685,-306.30098188,0.00039721,2]
[404766911,1770519043695,-300.0,0.00039721,2]
[404766912,1770519043704,-300.0,0.00039721,2]
[404766913,1770519043714,-457.33043133,0.00039721,2]
[404766914,1770519043723,-300.0,0.00039721,2]
[404766915,1770519043733,-300.0,0.00039721,2]
[404766916,1770519043742,-300.0,0.00039721,2]
[404766917,1770519043752,-370.2222184,0.00039721,2]
[404766918,1770519043762,-300.0,0.00039721,2]
[404766919,1770519043771,-300.0,0.00039721,2]
[404766920,1770519043783,-300.0,0.00039721,2]
[404766921,1770519043795,-300.0,0.00039721,2]
[404766922,1770519043805,-300.0,0.00039721,2]
[404766923,1770519043814,-300.0,0.00039721,2]
[404766924,1770519043825,-516.96458608,0.00039721,2]
[404766925,1770519043835,-305.27812549,0.00039721,2]
[404766926,1770519043845,-300.0,0.00039721,2]
[404766927,1770519043855,-300.0,0.00039721,2]
[404766928,1770519043865,-300.0,0.00039721,2]
[404766929,1770519043875,-300.0,0.00039721,2]
[404766930,1770519043885,-300.0,0.00039721,2]
[404766931,1770519043895,-300.0,0.00039721,2]
[404766932,1770519043906,-572.03870209,0.00039721,2]
[404766933,1770519043915,-300.0,0.00039721,2]
[404766934,1770519043925,-300.0,0.00039721,2]
[404766935,1770519043935,-300.0,0.00039721,2]
[404766936,1770519043954,-1078.62288825,0.00039721,2]
[404766937,1770519043965,-300.0,0.00039721,2]
[404766938,1770519043976,-300.0,0.00039721,2]
[404766939,1770519043990,-852.9683247,0.00039721,2]
[404766940,1770519044011,-305.12354707,0.00039721,2]
[404766941,1770519044033,-300.0,0.00039721,2]
[404766942,1770519044053,-881.67763408,0.00039721,2]
[404766943,1770519044069,-300.0,0.00039721,2]
[404766944,1770519044088,-300.0,0.00039721,2]
[404766945,1770519044098,-300.0,0.00039721,2]
[404766946,1770519044110,-300.0,0.00039721,2]
[404766947,1770519044122,-306.30098188,0.00039721,2]
[404766948,1770519044136,-300.0,0.00039721,2]
[404766949,1770519044146,-300.0,0.00039721,2]
[404766950,1770519044156,-457.33043133,0.00039721,2]
[404766951,1770519044174,-300.0,0.00039721,2]
[404766952,1770519044195,-300.0,0.00039721,2]
[404766953,1770519044210,-300.0,0.00039721,2]
[404766954,1770519044222,-370.2222184,0.00039721,2]
[404766955,1770519044233,-300.0,0.00039721,2]
[404766956,1770519044243,-300.0,0.00039721,2]
[404766957,1770519044254,-300.0,0.00039721,2]
[404766958,1770519044263,-300.0,0.00039721,2]
[404766959,1770519044273,-300.0,0.00039721,2]
[404766960,1770519044283,-300.0,0.00039721,2]
[404766961,1770519044296,-516.96458608,0.00039721,2]
[404766962,1770519044306,-305.27812549,0.00039721,2]
[404766964,1770519044316,-300.0,0.00039721,2]
[404766966,1770519044326,-300.0,0.00039721,2]
[404766968,1770519044336,-300.0,0.00039721,2]
[404766970,1770519044347,-498.17379586,0.00039721,2]
[404766972,1770519044356,-300.0,0.00039721,2]
[404766974,1770519044366,-300.0,0.00039721,2]
[404766976,1770519044377,-572.03870209,0.00039721,2]
[404766978,1770519044388,-300.0,0.00039721,2]
[404766980,1770519044398,-300.0,0.00039721,2]
[404766982,1770519044408,-300.0,0.00039721,2]
[404766984,1770519044419,-1078.62288825,0.00039721,2]
[404766986,1770519044429,-300.0,0.00039721,2]
[404766987,1770519044440,-852.9683247,0.00039721,2]
[404766989,1770519044450,-305.12354707,0.00039721,2]
[404766992,1770519044461,-300.0,0.00039721,2]
[404766994,1770519044472,-881.67763408,0.00039721,2]
[404766996,1770519044481,-300.0,0.00039721,2]
[404766997,1770519044490,-300.0,0.00039721,2]
[404766999,1770519044500,-300.0,0.00039721,2]
[404767001,1770519044510,-300.0,0.00039721,2]
[404767003,1770519044519,-306.30098188,0.00039721,2]
[404767004,1770519044528,-300.0,0.00039721,2]
[404767005,1770519044537,-300.0,0.00039721,2]
[404767006,1770519044547,-457.33043133,0.00039721,2]
[404767007,1770519044558,-300.0,0.00039721,2]
[404767008,1770519044568,-300.0,0.00039721,2]
[404767009,1770519044578,-300.0,0.00039721,2]
[404767010,1770519044587,-370.2222184,0.00039721,2]
[404767011,1770519044597,-300.0,0.00039721,2]
[404767012,1770519044607,-300.0,0.00039721,2]
[404767013,1770519044617,-300.0,0.00039721,2]
[404767014,1770519044627,-300.0,0.00039721,2]
[404767015,1770519044636,-300.0,0.00039721,2]
[404767016,1770519044646,-300.0,0.00039721,2]
[404767017,1770519044656,-516.96458608,0.00039721,2]
[404767018,1770519044665,-305.27812549,0.00039721,2]
[404767019,1770519044674,-300.0,0.00039721,2]
[404767020,1770519044684,-300.0,0.00039721,2]
[404767021,1770519044693,-300.0,0.00039721,2]
[404767022,1770519044703,-300.0,0.00039721,2]
[404767023,1770519044712,-515.09388625,0.00039721,2]
[404767024,1770519044722,-572.03870209,0.00039721,2]
[404767025,1770519044731,-300.0,0.00039721,2]
[404767026,1770519044740,-576.86205698,0.00039721,2]
[404767027,1770519044750,-300.0,0.00039721,2]
[404767028,1770519044760,-1078.62288825,0.00039721,2]
[404767029,1770519044769,-300.0,0.00039721,2]
[404767030,1770519044778,-852.9683247,0.00039721,2]
[404767031,1770519044789,-305.12354707,0.00039721,2]
[404767032,1770519044799,-300.0,0.00039721,2]
[404767033,1770519044808,-881.67763408,0.00039721,2]
[404767034,1770519044817,-300.0,0.00039721,2]
[404767035,1770519044828,-300.0,0.00039721,2]
[404767036,1770519044837,-300.0,0.00039721,2]
[404767037,1770519044846,-300.0,0.00039721,2]
[404767038,1770519044856,-306.30098188,0.00039721,2]
[404767039,1770519044865,-300.0,0.00039721,2]
[404767040,1770519044874,-300.0,0.00039721,2]
[404767041,1770519044883,-457.33043133,0.00039721,2]
[404767042,1770519044892,-300.0,0.00039721,2]
[404767043,1770519044902,-300.0,0.00039721,2]
[404767044,1770519044911,-300.0,0.00039721,2]
[404767045,1770519044921,-370.2222184,0.00039721,2]
[404767046,1770519044931,-300.0,0.00039721,2]
[404767047,1770519044940,-300.0,0.00039721,2]
[404767048,1770519044950,-300.0,0.00039721,2]
[404767049,1770519044960,-300.0,0.00039721,2]
[404767050,1770519044969,-300.0,0.00039721,2]
[404767051,1770519044979,-300.0,0.00039721,2]
[404767052,1770519044989,-516.96458608,0.00039721,2]
[404767053,1770519044999,-305.27812549,0.00039721,2]
[404767054,1770519045009,-300.0,0.00039721,2]
[404767055,1770519045018,-300.0,0.00039721,2]
[404767056,1770519045027,-1028.30514699,0.000399,60]
[404767057,1770519045037,-389.3,0.0004,14]
[404767058,1770519045048,-153.0,0.0004,120]
[404767059,1770519045058,-152.0,0.0004,120]
[404767060,1770519045068,-11097.63916721,0.0004,120]
[404767061,1770519045077,-160.0,0.0004,120]
[404767062,1770519045086,-654.01,0.0004,120]
[404767063,1770519045098,-354.34,0.0004,120]
[404767064,1770519045106,-14612.22,0.0004,2]
[404767065,1770519045117,-300.081033,0.00040661,102]
[404767066,1770519045127,-153.0,0.000408,120]
[404767067,1770519045138,-152.0,0.000409,120]
[404767068,1770519045149,-612.42715191,0.00041,30]
[404767069,1770519045158,-250.0,0.00041,45]
[404767070,1770519045167,-250.0,0.00041,45]
[404767071,1770519045176,-300.0,0.00041068,22]
[404767072,1770519045186,-509.0,0.00041078,12]
[404767073,1770519045195,-265.89,0.00041096,120]
[404767074,1770519045204,-152.59975268,0.000412,30]
[404767075,1770519045214,-744.5,0.000413,30]
[404767076,1770519045224,-1411.0,0.00041365,2]
[404767077,1770519045233,-1335.0,0.00041365,2]
[404767078,1770519045242,-1206.0,0.00041365,2]
[404767079,1770519045252,-917.0,0.00041365,2]
[404767080,1770519045262,-1272.0,0.00041365,2]
[404767081,1770519045272,-5189.715,0.00041365,2]
[404767082,1770519045283,-2447.0,0.00041365,2]
[404767083,1770519045294,-3255.0,0.00041365,2]
[404767084,1770519045303,-200.0,0.000414,2]
[404767085,1770519045313,-200.0,0.000414,2]
[404767086,1770519045322,-200.0,0.000414,2]
[404767087,1770519045331,-200.0,0.000414,2]
[404767088,1770519045340,-200.0,0.000414,2]
[404767089,1770519045350,-200.0,0.000414,2]
[404767090,1770519045360,-200.0,0.000414,2]
[404767091,1770519045370,-200.0,0.000414,2]
[404767092,1770519045380,-200.0,0.000414,2]
[404767093,1770519045389,-200.0,0.000414,2]
[404767094,1770519045399,-200.0,0.000414,2]
[404767095,1770519045409,-200.0,0.000414,2]
[404767096,1770519045419,-200.0,0.000414,2]
[404767097,1770519045429,-200.0,0.000414,2]
[404767098,1770519045439,-200.0,0.000414,2]
[404767099,1770519045448,-200.0,0.000414,2]
[404767100,1770519045458,-200.0,0.000414,2]
[404767101,1770519045469,-200.0,0.000414,2]
[404767102,1770519045479,-200.0,0.000414,2]
[404767103,1770519045489,-200.0,0.000414,2]
[404767104,1770519045498,-200.0,0.000414,2]
[404767105,1770519045508,-200.0,0.000414,2]
[404767106,1770519045518,-200.0,0.000414,2]
[404767107,1770519045527,-200.0,0.000414,2]
[404767108,1770519045537,-200.0,0.000414,2]
[404767109,1770519045546,-200.0,0.000414,2]
[404767110,1770519045556,-200.0,0.000414,2]
[404767111,1770519045566,-200.0,0.000414,2]
[404767112,1770519045576,-200.0,0.000414,2]
[404767113,1770519045586,-200.0,0.000414,2]
[404767114,1770519045597,-200.0,0.000414,2]
[404767115,1770519045606,-200.0,0.000414,2]
[404767116,1770519045616,-200.0,0.000414,2]
[404767117,1770519045625,-200.0,0.000414,2]
[404767118,1770519045635,-200.0,0.000414,2]
[404767119,1770519045645,-200.0,0.000414,2]
[404767120,1770519045655,-208.0,0.000414,2]
[404767121,1770519045664,-1423.93462097,0.00041414,120]
[404767122,1770519045674,-171.06,0.00041431,120]
[404767123,1770519045683,-300.0,0.00041493,2]
[404767124,1770519045693,-153.0,0.000415,120]
[404767125,1770519045702,-277.66116042,0.000415,120]
[404767126,1770519045712,-171.07293598,0.00041531,120]
[404767127,1770519045722,-260.43751861,0.0004163,10]
[404767128,1770519045735,-1072.0,0.000418,120]
[404767129,1770519045745,-152.0,0.000419,120]
[404767130,1770519045754,-151.0,0.000419,120]
[404767131,1770519045764,-151.0,0.000419,120]
[404767132,1770519045774,-151.0,0.000419,120]
[404767133,1770519045785,-151.0,0.000419,120]
[404767134,1770519045795,-151.0,0.000419,120]
[404767135,1770519045805,-151.0,0.000419,120]
[404767136,1770519045815,-226.765876,0.000419,120]
[404767137,1770519045827,-151.0,0.000419,120]
[404767138,1770519045837,-151.0,0.000419,120]
[404767139,1770519045847,-151.0,0.000419,120]
[404767140,1770519045858,-151.0,0.000419,120]
[404767141,1770519045868,-151.0,0.000419,120]
[404767142,1770519045877,-151.0,0.000419,120]
[404767143,1770519045888,-151.0,0.000419,120]
[404767144,1770519045899,-151.0,0.000419,120]
[404767145,1770519045909,-151.0,0.000419,120]
[404767146,1770519045920,-151.0,0.000419,120]
[404767147,1770519045930,-151.0,0.000419,120]
[404767148,1770519045940,-151.0,0.000419,120]
[404767149,1770519045949,-151.0,0.000419,120]
[404767150,1770519045959,-151.0,0.000419,120]
[404767151,1770519045969,-276.4992,0.000419,120]
[404767152,1770519045979,-151.0,0.000419,120]
[404767153,1770519045988,-151.0,0.000419,120]
[404767154,1770519045997,-151.0,0.000419,120]
[404767155,1770519046006,-151.0,0.000419,120]
[404767156,1770519046016,-151.0,0.000419,120]
[404767157,1770519046026,-151.0,0.000419,120]
[404767158,1770519046036,-285.188484,0.000419,120]
[404767159,1770519046046,-265.80043,0.000419,120]
[404767160,1770519046055,-206.265609,0.000419,28]
[404767161,1770519046064,-206.265609,0.000419,28]
[404767162,1770519046074,-206.265609,0.000419,28]
[404767163,1770519046083,-206.265609,0.000419,28]
[404767164,1770519046093,-14612.22,0.000419,2]
[404767165,1770519046102,-459.72,0.00041902,120]
[404767166,1770519046111,-246.16649362,0.00041999,120]
[404767167,1770519046121,-151.0,0.00041999,120]
[404767168,1770519046131,-151.0,0.00041999,120]
[404767169,1770519046140,-151.0,0.00041999,120]
[404767170,1770519046149,-151.0,0.00041999,120]
[404767171,1770519046159,-211.587412,0.00041999,120]
[404767172,1770519046168,-151.0,0.00041999,120]
[404767173,1770519046178,-211.587412,0.00041999,120]
[404767174,1770519046188,-151.0,0.00041999,120]
[404767175,1770519046198,-151.0,0.00041999,120]
[404767176,1770519046207,-267.09956,0.00041999,120]
[404767177,1770519046217,-211.587412,0.00041999,120]
[404767178,1770519046228,-211.587412,0.00041999,120]
[404767179,1770519046237,-316.597771,0.00041999,120]
[404767180,1770519046247,-151.0,0.00041999,120]
[404767181,1770519046256,-316.597771,0.00041999,120]
[404767182,1770519046266,-151.0,0.00041999,120]
[404767183,1770519046276,-316.597771,0.00041999,120]
[404767184,1770519046286,-151.0,0.00041999,120]
[404767185,1770519046295,-160.720444,0.00041999,120]
[404767186,1770519046305,-151.0,0.00041999,120]
[404767187,1770519046314,-316.597771,0.00041999,120]
[404767188,1770519046324,-151.0,0.00041999,120]
[404767189,1770519046334,-160.720444,0.00041999,120]
[404767190,1770519046344,-151.0,0.00041999,120]
[404767191,1770519046354,-160.720444,0.00041999,120]
[404767192,1770519046363,-151.0,0.00041999,120]
[404767193,1770519046374,-160.720444,0.00041999,120]
[404767194,1770519046384,-151.0,0.00041999,120]
[404767195,1770519046394,-151.0,0.00041999,120]
[404767196,1770519046404,-151.0,0.00041999,120]
[404767197,1770519046414,-151.0,0.00041999,120]
[404767198,1770519046424,-165.535671,0.00041999,120]
[404767199,1770519046434,-182.084973,0.00041999,120]
[404767200,1770519046444,-182.084973,0.00041999,120]
[404767201,1770519046454,-182.084973,0.00041999,120]
[404767202,1770519046463,-182.084973,0.00041999,120]
[404767203,1770519046473,-151.0,0.00041999,120]
[404767204,1770519046483,-151.0,0.00041999,120]
[404767205,1770519046702,-151.0,0.00041999,120]
[404767206,1770519046712,-151.0,0.00041999,120]
[404767207,1770519046722,-151.0,0.00041999,120]
[404767208,1770519046731,-841.609532,0.00041999,120]
[404767209,1770519046740,-841.609532,0.00041999,120]
[404767210,1770519046750,-151.0,0.00041999,120]
[404767211,1770519046759,-841.609532,0.00041999,120]
[404767212,1770519046769,-151.0,0.00041999,120]
[404767213,1770519046779,-151.0,0.00041999,120]
[404767214,1770519046789,-841.609532,0.00041999,120]
[404767215,1770519046799,-151.0,0.00041999,120]
[404767216,1770519046808,-151.0,0.00041999,120]
[404767217,1770519046818,-151.0,0.00041999,120]
[404767218,1770519046830,-151.0,0.00041999,120]
[404767219,1770519046840,-151.0,0.00041999,120]
[404767220,1770519046850,-151.0,0.00041999,120]
[404767221,1770519046862,-151.0,0.00041999,120]
[404767222,1770519046873,-176.865314,0.00041999,31]
[404767223,1770519046882,-176.865314,0.00041999,31]
[404767224,1770519046892,-151.0,0.00041999,120]
[404767225,1770519046902,-176.865314,0.00041999,31]
[404767226,1770519046911,-151.0,0.00041999,120]
[404767227,1770519046921,-151.0,0.00041999,120]
[404767228,1770519046931,-176.865314,0.00041999,31]
[404767229,1770519046942,-151.0,0.00041999,120]
[404767230,1770519046952,-212.786202,0.00041999,120]
[404767231,1770519046961,-151.0,0.00041999,120]
[404767232,1770519046972,-151.0,0.00041999,120]
[404767233,1770519046981,-283.343817,0.00041999,120]
[404767234,1770519046992,-213.75126474,0.00042,2]
[404767235,1770519047001,-300.0,0.00042,45]
[404767236,1770519047011,-250.0,0.00042,45]
[404767237,1770519047021,-294.0,0.00042,45]
[404767238,1770519047032,-250.0,0.00042,45]
[404767239,1770519047042,-261.82161241,0.00042,120]
[404767240,1770519047052,-500.0,0.00042,20]
[404767241,1770519047061,-200.0,0.00042059,3]
[404767242,1770519047070,-200.0,0.00042064,3]
[404767243,1770519047080,-500.0,0.00042191,120]
[404767244,1770519047090,-500.0,0.00042191,120]
[404767245,1770519047100,-500.0,0.00042191,120]
[404767246,1770519047110,-500.0,0.00042191,120]
[404767247,1770519047120,-202.55903106,0.00042191,120]
[404767248,1770519047130,-763.59372497,0.000422,2]
[404767249,1770519047139,-153.0,0.000423,120]
[404767250,1770519047149,-20000.0,0.00042466,120]
[404767251,1770519047158,-151.0,0.00042466,120]
[404767252,1770519047169,-294.873667,0.00042466,120]
[404767253,1770519047178,-151.0,0.00042466,14]
[404767254,1770519047188,-151.0,0.00042466,14]
[404767255,1770519047199,-151.0,0.00042466,14]
[404767256,1770519047209,-177.0,0.00042472,7]
[404767257,1770519047219,-177.0,0.00042516,2]
[404767258,1770519047230,-151.24068403,0.00042536,2]
[404767259,1770519047239,-500.0,0.00042537,60]
[404767260,1770519047250,-500.0,0.00042537,60]
[404767261,1770519047260,-500.0,0.00042537,60]
[404767262,1770519047271,-1550.0,0.00042739,30]
[404767263,1770519047281,-1146.277446,0.0004274,120]
[404767264,1770519047290,-1146.277446,0.0004274,120]
[404767265,1770519047300,-1146.277446,0.0004274,120]
[404767266,1770519047309,-1146.277446,0.0004274,120]
[404767267,1770519047319,-1000.0,0.0004274,30]
[404767268,1770519047328,-4657.83024449,0.00042745,15]
[404767269,1770519047338,-509.0,0.0004277,14]
[404767270,1770519047348,-152.0,0.000428,120]
[404767271,1770519047357,-51854.0,0.00042821,30]
[404767272,1770519047367,-278.82588179,0.00042845,7]
[404767273,1770519047376,-383.9480532,0.0004288,120]
[404767274,1770519047386,-2000.0,0.000429,7]
[404767275,1770519047396,-154.09482879,0.000429,120]
[404767276,1770519047405,-177.0,0.00042968,120]
[404767277,1770519047414,-348.93247409,0.00042998,30]
[404767278,1770519047424,-153.0,0.00043,120]
[404767279,1770519047434,-212.0,0.00043,30]
[404767280,1770519047444,-20000.0,0.00043,120]
[404767281,1770519047453,-3273.88589306,0.00043,30]
[404767282,1770519047463,-100312.62756818,0.00043,2]
[404767283,1770519047473,-191.737814,0.00043,120]
[404767284,1770519047482,-230.910915,0.00043,120]
[404767285,1770519047491,-154.01427,0.00043,120]
[404767286,1770519047501,-168.0,0.00043,90]
[404767287,1770519047510,-1000.0,0.00043014,30]
[404767288,1770519047521,-177.0,0.00043054,2]
[404767289,1770519047530,-1137.18995077,0.000431,120]
[404767290,1770519047540,-150.0,0.000431,120]
[404767291,1770519047550,-2000.0,0.000431,7]
[404767292,1770519047559,-1000.0,0.00043104,2]
[404767293,1770519047569,-500.0,0.0004317,30]
[404767294,1770519047580,-177.0,0.00043179,7]
[404767295,1770519047589,-500.0,0.0004318,60]
[404767296,1770519047599,-508.42955982,0.0004318,30]
[404767297,1770519047608,-835.27479263,0.000432,120]
[404767298,1770519047618,-177.0,0.00043217,2]
[404767299,1770519047627,-151.4213,0.0004322,7]
[404767300,1770519047637,-612.7757436,0.00043221,30]
[404767301,1770519047647,-49000.8462569,0.00043263,30]
[404767302,1770519047789,-306.10710901,0.00043263,30]
[404767303,1770519048086,-150.0,0.00036649,2]
[404767304,1770519048095,-150.0,0.00038482,2]
[404767305,1770519048105,-300.0,0.00039721,2]
[404767306,1770519048115,-300.0,0.00039721,2]
[404767307,1770519048124,-572.03870209,0.00039721,2]
[404767308,1770519048134,-150.0,0.00040406,2]
[404767309,1770519048143,-150.0,0.00042426,120]
[404767310,1770519048153,-2547.04663409,0.00043263,30]
[404767311,1770519048163,-152.0,0.00043268,4]
[404767312,1770519048172,-151.0,0.00043287,60]
[404767313,1770519048181,-1000.0,0.00043288,30]
[404767314,1770519048191,-2000.0,0.000433,2]
[404767315,1770519048201,-988.72160231,0.00043319,120]
[404767316,1770519048210,-152.52520712,0.000434,120]
[404767317,1770519048220,-177.0,0.00043426,2]
[404767318,1770519048231,-177.0,0.00043482,2]
[404767319,1770519048240,-14612.22,0.000435,2]
[404767320,1770519048249,-177.0,0.0004353,30]
[404767321,1770519048259,-1000.0,0.00043562,30]
[404767322,1770519048269,-2000.0,0.000436,7]
[404767323,1770519048278,-500.0,0.00043633,60]
[404767324,1770519048288,-500.0,0.00043633,60]
[404767325,1770519048298,-500.0,0.00043633,60]
[404767326,1770519048307,-844.17346933,0.0004369,120]
[404767327,1770519048318,-152.0,0.000437,120]
[404767328,1770519048328,-256.44961567,0.000437,120]
[404767329,1770519048338,-51854.0,0.00043704,30]
[404767330,1770519048348,-162.38812646,0.00043732,120]
[404767331,1770519048358,-867.64,0.0004375,120]
[404767332,1770519048367,-177.0,0.0004376,2]
[404767333,1770519048377,-453.98,0.000438,120]
[404767334,1770519048386,-153.0,0.000438,120]
[404767335,1770519048397,-2804.0,0.000438,7]
[404767336,1770519048407,-199.50253493,0.00043835,15]
[404767337,1770519048417,-500.0,0.00043835,120]
[404767338,1770519048427,-500.0,0.00043835,120]
[404767339,1770519048436,-500.0,0.00043835,120]
[404767340,1770519048445,-500.0,0.00043835,120]
[404767341,1770519048455,-497.29825063,0.00043835,120]
[404767342,1770519048464,-500.0,0.00043835,120]
[404767343,1770519048473,-500.0,0.00043835,120]
[404767344,1770519048483,-500.0,0.00043835,120]
[404767345,1770519048493,-500.0,0.00043835,120]
[404767346,1770519048502,-500.0,0.00043835,120]
[404767347,1770519048512,-513.24541406,0.00043835,120]
[404767348,1770519048521,-500.0,0.00043835,120]
[404767349,1770519048530,-500.0,0.00043835,120]
[404767350,1770519048540,-500.0,0.00043835,120]
[404767351,1770519048550,-527.05483782,0.00043835,120]
[404767352,1770519048559,-500.0,0.00043835,120]
[404767353,1770519048569,-500.0,0.00043835,120]
[404767354,1770519048578,-500.0,0.00043835,120]
[404767355,1770519048588,-514.80240291,0.00043835,120]
[404767356,1770519048598,-500.0,0.00043835,120]
[404767357,1770519048608,-512.83628163,0.00043835,120]
[404767358,1770519048618,-500.0,0.00043835,120]
[404767359,1770519048627,-500.0,0.00043835,120]
[404767360,1770519048637,-503.46167375,0.00043835,120]
[404767361,1770519048647,-510.48994209,0.00043835,120]
[404767362,1770519048657,-525.92768358,0.00043835,120]
[404767363,1770519048666,-500.0,0.00043835,120]
[404767364,1770519048677,-500.0,0.00043835,120]
[404767365,1770519048686,-500.0,0.00043835,120]
[404767366,1770519048696,-500.0,0.00043835,120]
[404767367,1770519048705,-500.0,0.00043835,120]
[404767368,1770519048715,-500.0,0.00043835,120]
[404767369,1770519048724,-500.0,0.00043835,120]
[404767370,1770519048734,-534.55632879,0.00043835,120]
[404767371,1770519048743,-500.0,0.00043835,120]
[404767372,1770519048752,-565.83514836,0.00043835,120]
[404767373,1770519048761,-504.47298071,0.00043835,120]
[404767374,1770519048771,-177.72331054,0.00043835,120]
[404767375,1770519048780,-500.0,0.00043835,120]
[404767376,1770519048793,-193.42728764,0.00043835,120]
[404767377,1770519048802,-500.0,0.00043835,120]
[404767378,1770519048812,-525.64347027,0.00043835,120]
[404767379,1770519048822,-500.0,0.00043835,120]
[404767380,1770519048834,-500.0,0.00043835,120]
[404767381,1770519048843,-500.0,0.00043835,120]
[404767382,1770519048854,-500.0,0.00043835,120]
[404767383,1770519048863,-509.63605329,0.00043835,120]
[404767384,1770519048873,-464.38270883,0.00043835,120]